[Event "Elite Hotels Open 2023"]
[Site "Elite Stadshotellet, Kungsgatan 6, Vaxjo, Sweden"]
[Date "2023.02.11"]
[Round "6.7"]
[White "Burwick, Malte"]
[Black "Golubka, Petro"]
[Result "0-1"]
[TimeControl "15 minutes + 5 seconds per move from move one (Round 1 - 4) / 90 minutes + 30 seconds per move from move one (Round 5 - 8)"]
[BlackTitle "GM"]
[WhiteFideId "1702475"]
[BlackFideId "14114224"]
[WhiteElo "2219"]
[BlackElo "2363"]

1. Nf3 {[%clk 01:30:57]} {[%emt 00:00:02]} Nf6 {[%clk 01:25:33]} {[%emt
00:05:27]} 2. g3 {[%clk 01:31:17]} {[%emt 00:00:10]} g6 {[%clk 01:26:00]}
{[%emt 00:00:04]} 3. Bg2 {[%clk 01:31:38]} {[%emt 00:00:09]} Bg7 {[%clk
01:26:26]} {[%emt 00:00:04]} 4. O-O {[%clk 01:32:01]} {[%emt 00:00:06]} O-O
{[%clk 01:26:54]} {[%emt 00:00:02]} 5. d4 {[%clk 01:31:37]} {[%emt 00:00:53]}
d6 {[%clk 01:27:11]} {[%emt 00:00:14]} 6. a4 {[%clk 01:29:18]} {[%emt
00:02:49]} a5 {[%clk 01:27:36]} {[%emt 00:00:06]} 7. Nbd2 {[%clk 01:27:38]}
{[%emt 00:02:09]} Nc6 {[%clk 01:26:34]} {[%emt 00:01:33]} 8. c3 {[%clk
01:22:07]} {[%emt 00:06:00]} Nd7 {[%clk 01:26:47]} {[%emt 00:00:17]} 9. d5
{[%clk 01:21:18]} {[%emt 00:01:20]} Nce5 {[%clk 01:26:56]} {[%emt 00:00:20]} 10.
Nd4 {[%clk 01:21:35]} {[%emt 00:00:12]} Nc5 {[%clk 01:27:10]} {[%emt 00:00:17]}
11. f4 {[%clk 01:16:36]} {[%emt 00:05:28]} Ng4 {[%clk 01:26:31]} {[%emt
00:01:09]} 12. N2b3 {[%clk 01:16:12]} {[%emt 00:00:54]} Nxb3 {[%clk 01:26:37]}
{[%emt 00:00:24]} 13. Qxb3 {[%clk 01:16:14]} {[%emt 00:00:28]} Bxd4+ {[%clk
01:24:25]} {[%emt 00:02:42]} 14. cxd4 {[%clk 01:16:31]} {[%emt 00:00:13]} f5
{[%clk 01:24:53]} {[%emt 00:00:02]} 15. Bd2 {[%clk 01:14:32]} {[%emt 00:02:29]}
Bd7 {[%clk 01:21:46]} {[%emt 00:03:38]} 16. e4 {[%clk 01:01:00]} {[%emt
00:14:02]} fxe4 {[%clk 01:21:46]} {[%emt 00:00:30]} 17. Bxe4 {[%clk 01:01:21]}
{[%emt 00:00:09]} Nf6 {[%clk 01:21:28]} {[%emt 00:00:48]} 18. Bg2 {[%clk
01:01:22]} {[%emt 00:00:27]} Kg7 {[%clk 01:16:11]} {[%emt 00:05:49]} 19. h3
{[%clk 00:56:28]} {[%emt 00:05:23]} h5 {[%clk 01:14:31]} {[%emt 00:02:10]} 20.
Rfe1 {[%clk 00:45:47]} {[%emt 00:11:10]} c6 {[%clk 01:08:23]} {[%emt 00:06:40]}
21. dxc6 {[%clk 00:45:39]} {[%emt 00:00:38]} bxc6 {[%clk 01:08:52]} {[%emt
00:00:02]} 22. Qe3 {[%clk 00:31:46]} {[%emt 00:14:21]} Rf7 {[%clk 01:09:02]}
{[%emt 00:00:18]} 23. Ra3 {[%clk 00:29:15]} {[%emt 00:03:03]} Nd5 {[%clk
01:06:02]} {[%emt 00:03:31]} 24. Bxd5 {[%emt 00:10:00]} cxd5 {[%clk 01:05:15]}
{[%emt 00:01:14]} 25. Qf3 {[%clk 00:13:29]} {[%emt 00:06:50]} Bxh3 {[%clk
01:03:13]} {[%emt 00:02:32]} 26. Qxd5 {[%clk 00:13:48]} {[%emt 00:00:10]} Bf5
{[%clk 01:02:49]} {[%emt 00:00:54]} 27. Rae3 {[%clk 00:13:17]} {[%emt
00:01:01]} Ra7 {[%clk 00:52:07]} {[%emt 00:11:12]} 28. Bc3 {[%clk 00:12:50]}
{[%emt 00:00:58]} Qd7 {[%clk 00:48:07]} {[%emt 00:04:29]} 29. Qb5 {[%clk
00:06:10]} {[%emt 00:07:10]} Qxb5 {[%clk 00:46:13]} {[%emt 00:02:20]} 30. axb5
{[%emt 00:02:32]} Rb7 {[%clk 00:46:20]} {[%emt 00:00:21]} 31. Bxa5 {[%clk
00:04:33]} {[%emt 00:00:12]} Rxb5 {[%clk 00:46:33]} {[%emt 00:00:17]} 32. Bc3
{[%clk 00:04:56]} {[%emt 00:00:06]} Kf8 {[%clk 00:46:41]} {[%emt 00:00:23]} 33.
Ra1 {[%clk 00:04:02]} {[%emt 00:01:24]} Rd5 {[%clk 00:46:26]} {[%emt 00:00:45]}
34. Ra5 {[%clk 00:03:47]} {[%emt 00:00:45]} Rxa5 {[%clk 00:46:39]} {[%emt
00:00:18]} 35. Bxa5 {[%clk 00:04:12]} {[%emt 00:00:05]} Bd7 {[%clk 00:46:25]}
{[%emt 00:00:42]} 36. Be1 {[%clk 00:01:31]} {[%emt 00:03:12]} h4 {[%clk
00:46:05]} {[%emt 00:00:51]} 37. gxh4 {[%clk 00:01:31]} {[%emt 00:00:30]} Rxf4
{[%clk 00:46:28]} {[%emt 00:00:06]} 38. Rd3 {[%clk 00:01:14]} {[%emt 00:00:47]}
Bb5 {[%clk 00:46:49]} {[%emt 00:00:09]} 39. Bg3 {[%clk 00:01:13]} {[%emt
00:00:31]} Rg4 {[%clk 00:47:11]} {[%emt 00:00:08]} 40. Rb3 {[%clk 00:00:53]}
{[%emt 00:00:50]} Bc4 {[%clk 00:47:11]} {[%emt 00:00:31]} 41. Rf3+ {[%clk
00:01:11]} {[%emt 00:00:12]} Ke8 {[%clk 00:47:20]} {[%emt 00:00:20]} 42. b3
{[%clk 00:01:19]} {[%emt 00:00:22]} Bd5 {[%clk 00:46:36]} {[%emt 00:01:14]} 43.
Rd3 {[%clk 00:00:42]} {[%emt 00:01:07]} Be4 {[%clk 00:46:50]} {[%emt 00:00:17]}
44. Re3 {[%clk 00:01:03]} {[%emt 00:00:09]} Bf5 {[%clk 00:46:44]} {[%emt
00:00:33]} 45. d5 {[%clk 00:01:28]} {[%emt 00:00:08]} Kd7 {[%clk 00:45:37]}
{[%emt 00:01:37]} 46. Kf2 {[%clk 00:01:46]} {[%emt 00:00:12]} Be4 {[%clk
00:44:27]} {[%emt 00:01:39]} 47. Ke2 {[%clk 00:01:56]} {[%emt 00:00:20]} Bxd5
{[%clk 00:44:34]} {[%emt 00:00:22]} 48. Kd2 {[%clk 00:02:14]} {[%emt 00:00:13]}
e5 {[%clk 00:38:48]} {[%emt 00:06:17]} 49. Kc2 {[%clk 00:01:26]} {[%emt
00:01:17]} Ke6 {[%clk 00:35:20]} {[%emt 00:03:58]} 50. Kc3 {[%clk 00:01:43]}
{[%emt 00:00:13]} Be4 {[%clk 00:35:05]} {[%emt 00:00:41]} 51. Be1 {[%clk
00:01:38]} {[%emt 00:00:39]} d5 {[%clk 00:34:13]} {[%emt 00:01:22]} 52. Rh3
{[%clk 00:00:49]} {[%emt 00:01:19]} Rg1 {[%clk 00:31:29]} {[%emt 00:03:13]} 53.
Bd2 {[%clk 00:00:43]} {[%emt 00:00:37]} d4+ {[%clk 00:30:37]} {[%emt 00:01:22]}
54. Kb2 {[%clk 00:00:58]} {[%emt 00:00:15]} Rg2 {[%clk 00:30:22]} {[%emt
00:00:42]} 55. Kc1 {[%clk 00:01:25]} {[%emt 00:00:07]} Bf5 {[%clk 00:30:00]}
{[%emt 00:00:51]} 56. Rh1 {[%clk 00:01:46]} {[%emt 00:00:09]} e4 {[%clk
00:29:35]} {[%emt 00:00:55]} 57. h5 {[%clk 00:01:33]} {[%emt 00:00:43]} gxh5
{[%clk 00:29:27]} {[%emt 00:00:38]} 58. Rxh5 {[%clk 00:01:52]} {[%emt
00:00:10]} e3 {[%clk 00:29:14]} {[%emt 00:00:45]} 59. Bxe3 {[%clk 00:01:50]}
{[%emt 00:00:32]} dxe3 {[%clk 00:29:26]} {[%emt 00:00:18]} 0-1

[Event "Elite Hotels Open 2023"]
[Site "Elite Stadshotellet, Kungsgatan 6, Vaxjo, Sweden"]
[Date "2023.02.11"]
[Round "6.8"]
[White "Kristensen, Kaare Hove"]
[Black "Poley, Vladimir"]
[Result "1-0"]
[TimeControl "15 minutes + 5 seconds per move from move one (Round 1 - 4) / 90 minutes + 30 seconds per move from move one (Round 5 - 8)"]
[WhiteTitle "IM"]
[BlackTitle "IM"]
[WhiteFideId "1400940"]
[BlackFideId "13500090"]
[WhiteElo "2210"]
[BlackElo "2325"]

1. c4 {[%clk 01:30:48]} {[%emt 00:00:10]} g6 {[%clk 01:30:55]} {[%emt
00:00:06]} 2. Nc3 {[%clk 01:30:54]} {[%emt 00:00:25]} Bg7 {[%clk 01:31:20]}
{[%emt 00:00:05]} 3. d4 {[%clk 01:31:07]} {[%emt 00:00:17]} d6 {[%clk
01:31:43]} {[%emt 00:00:07]} 4. e4 {[%clk 01:30:44]} {[%emt 00:00:51]} Nc6
{[%clk 01:31:55]} {[%emt 00:00:19]} 5. Be3 {[%clk 01:30:42]} {[%emt 00:00:32]}
e5 {[%clk 01:32:19]} {[%emt 00:00:06]} 6. Nge2 {[%clk 01:30:59]} {[%emt
00:00:12]} Nh6 {[%clk 01:32:14]} {[%emt 00:00:36]} 7. d5 {[%clk 01:30:07]}
{[%emt 00:01:23]} Ne7 {[%clk 01:31:24]} {[%emt 00:01:20]} 8. f3 {[%clk
01:30:00]} {[%emt 00:00:36]} f5 {[%clk 01:31:44]} {[%emt 00:00:10]} 9. Qd2
{[%clk 01:30:23]} {[%emt 00:00:07]} Nf7 {[%clk 01:31:53]} {[%emt 00:00:21]} 10.
g3 {[%clk 01:30:08]} {[%emt 00:00:44]} O-O {[%clk 01:32:01]} {[%emt 00:00:23]}
11. Bg2 {[%clk 01:30:26]} {[%emt 00:00:12]} c5 {[%clk 01:31:17]} {[%emt
00:01:14]} 12. Nc1 {[%clk 01:25:56]} {[%emt 00:04:59]} Bd7 {[%clk 01:28:39]}
{[%emt 00:03:08]} 13. Nd3 {[%clk 01:23:50]} {[%emt 00:02:36]} Qa5 {[%clk
01:21:43]} {[%emt 00:07:26]} 14. O-O {[%clk 01:18:30]} {[%emt 00:05:50]} a6
{[%clk 01:16:18]} {[%emt 00:05:55]} 15. a4 {[%clk 01:17:21]} {[%emt 00:01:39]}
Kh8 {[%clk 01:14:51]} {[%emt 00:01:58]} 16. Rfb1 {[%clk 01:03:45]} {[%emt
00:14:05]} Ng8 {[%clk 01:06:33]} {[%emt 00:08:48]} 17. b4 {[%clk 01:01:35]}
{[%emt 00:02:40]} cxb4 {[%clk 01:05:46]} {[%emt 00:01:17]} 18. Rxb4 {[%clk
01:01:51]} {[%emt 00:00:13]} Qc7 {[%clk 01:05:04]} {[%emt 00:01:13]} 19. Rab1
{[%clk 00:57:19]} {[%emt 00:05:03]} Nf6 {[%clk 01:02:06]} {[%emt 00:03:28]} 20.
c5 {[%clk 00:56:01]} {[%emt 00:01:48]} Bc8 {[%clk 00:57:10]} {[%emt 00:05:26]}
21. cxd6 {[%clk 00:47:04]} {[%emt 00:09:28]} Nxd6 {[%clk 00:56:46]} {[%emt
00:00:53]} 22. Nxe5 {[%clk 00:40:45]} {[%emt 00:06:49]} Nfxe4 {[%clk 00:52:18]}
{[%emt 00:04:59]} 23. fxe4 {[%clk 00:35:13]} {[%emt 00:06:01]} Bxe5 {[%clk
00:52:33]} {[%emt 00:00:15]} 24. Bd4 {[%clk 00:34:22]} {[%emt 00:01:21]} Qg7
{[%clk 00:47:37]} {[%emt 00:05:26]} 25. Bxe5 {[%clk 00:30:03]} {[%emt
00:04:49]} Qxe5 {[%clk 00:47:59]} {[%emt 00:00:08]} 26. Qd4 {[%clk 00:30:11]}
{[%emt 00:00:22]} Qxd4+ {[%clk 00:42:13]} {[%emt 00:06:16]} 27. Rxd4 {[%clk
00:30:26]} {[%emt 00:00:14]} fxe4 {[%clk 00:42:38]} {[%emt 00:00:06]} 28. Nxe4
{[%clk 00:25:56]} {[%emt 00:04:59]} Bf5 {[%clk 00:36:02]} {[%emt 00:07:05]} 29.
Rb6 {[%clk 00:25:26]} {[%emt 00:01:00]} Bxe4 {[%clk 00:28:54]} {[%emt
00:07:40]} 30. Rxd6 {[%clk 00:25:27]} {[%emt 00:00:29]} Bxg2 {[%clk 00:29:17]}
{[%emt 00:00:06]} 31. Kxg2 {[%clk 00:25:44]} {[%emt 00:00:12]} Rad8 {[%clk
00:27:46]} {[%emt 00:02:02]} 32. Rxd8 {[%clk 00:19:44]} {[%emt 00:06:31]} Rxd8
{[%clk 00:28:11]} {[%emt 00:00:04]} 33. Kf3 {[%clk 00:18:44]} {[%emt 00:01:30]}
Kg7 {[%clk 00:17:35]} {[%emt 00:11:07]} 34. Ke4 {[%clk 00:17:27]} {[%emt
00:01:47]} Re8+ {[%clk 00:16:27]} {[%emt 00:01:40]} 35. Kd3 {[%clk 00:17:16]}
{[%emt 00:00:38]} Rd8 {[%clk 00:16:39]} {[%emt 00:00:19]} 36. Kc4 {[%clk
00:08:39]} {[%emt 00:09:07]} Rc8+ {[%clk 00:13:13]} {[%emt 00:03:56]} 37. Kb4
{[%clk 00:08:21]} {[%emt 00:00:48]} Kf6 {[%clk 00:11:34]} {[%emt 00:02:10]} 38.
Re4 {[%clk 00:07:15]} {[%emt 00:01:34]} Rc2 {[%clk 00:09:32]} {[%emt 00:02:33]}
39. d6 {[%clk 00:05:55]} {[%emt 00:01:50]} b6 {[%clk 00:07:26]} {[%emt
00:02:37]} 40. Rd4 {[%clk 00:05:18]} {[%emt 00:01:06]} Rc8 {[%clk 00:04:47]}
{[%emt 00:03:09]} 41. d7 {[%clk 00:05:23]} {[%emt 00:00:25]} Rd8 {[%clk
00:05:12]} {[%emt 00:00:06]} 42. a5 {[%clk 00:05:36]} {[%emt 00:00:16]} bxa5+
{[%clk 00:05:11]} {[%emt 00:00:31]} 43. Kc5 {[%clk 00:05:57]} {[%emt 00:00:08]}
a4 {[%clk 00:05:28]} {[%emt 00:00:14]} 44. Kc6 {[%clk 00:06:08]} {[%emt
00:00:19]} a3 {[%clk 00:05:48]} {[%emt 00:00:11]} 45. Kc7 {[%clk 00:05:30]}
{[%emt 00:01:07]} a2 {[%clk 00:05:35]} {[%emt 00:00:43]} 46. Rd1 {[%clk
00:05:51]} {[%emt 00:00:09]} Ke7 {[%clk 00:05:24]} {[%emt 00:00:41]} 47. Re1
{[%clk 00:06:11]} {[%emt 00:00:10]} Kf7 {[%clk 00:05:48]} {[%emt 00:00:06]} 48.
Kxd8 {[%clk 00:06:34]} {[%emt 00:00:06]} 1-0

[Event "Elite Hotels Open 2023"]
[Site "Elite Stadshotellet, Kungsgatan 6, Vaxjo, Sweden"]
[Date "2023.02.11"]
[Round "6.9"]
[White "Lindberg, Bengt"]
[Black "Rasti, Arvin"]
[Result "1/2-1/2"]
[TimeControl "15 minutes + 5 seconds per move from move one (Round 1 - 4) / 90 minutes + 30 seconds per move from move one (Round 5 - 8)"]
[WhiteTitle "IM"]
[WhiteFideId "1700359"]
[BlackFideId "1741160"]
[WhiteElo "2354"]
[BlackElo "2211"]

1. e4 {[%clk 01:30:51]} {[%emt 00:00:07]} c6 {[%clk 01:30:46]} {[%emt
00:00:16]} 2. d4 {[%clk 01:30:53]} {[%emt 00:00:27]} d5 {[%clk 01:31:14]}
{[%emt 00:00:03]} 3. f3 {[%clk 01:30:25]} {[%emt 00:00:58]} e6 {[%clk
01:28:47]} {[%emt 00:02:56]} 4. Nc3 {[%clk 01:30:41]} {[%emt 00:00:14]} Nf6
{[%clk 01:29:10]} {[%emt 00:00:08]} 5. Be3 {[%clk 01:28:09]} {[%emt 00:02:54]}
b6 {[%clk 01:29:04]} {[%emt 00:00:44]} 6. e5 {[%clk 01:17:15]} {[%emt
00:11:24]} Nfd7 {[%clk 01:29:15]} {[%emt 00:00:19]} 7. f4 {[%clk 01:17:34]}
{[%emt 00:00:11]} Ba6 {[%clk 01:26:43]} {[%emt 00:03:02]} 8. Bxa6 {[%clk
01:15:14]} {[%emt 00:02:51]} Nxa6 {[%clk 01:27:11]} {[%emt 00:00:02]} 9. f5
{[%clk 01:14:05]} {[%emt 00:01:37]} Nc7 {[%clk 01:22:38]} {[%emt 00:05:03]} 10.
Qf3 {[%clk 01:06:42]} {[%emt 00:07:51]} c5 {[%clk 01:14:58]} {[%emt 00:08:12]}
11. Nge2 {[%clk 01:03:08]} {[%emt 00:04:03]} cxd4 {[%clk 01:12:50]} {[%emt
00:02:40]} 12. Bxd4 {[%clk 01:03:23]} {[%emt 00:00:14]} g6 {[%clk 01:08:38]}
{[%emt 00:04:43]} 13. f6 {[%clk 00:52:31]} {[%emt 00:11:22]} Nb8 {[%clk
01:05:01]} {[%emt 00:04:07]} 14. Bf2 {[%clk 00:49:36]} {[%emt 00:03:24]} Nc6
{[%clk 01:01:05]} {[%emt 00:04:28]} 15. Bg3 {[%clk 00:48:17]} {[%emt 00:01:48]}
Qc8 {[%clk 01:00:51]} {[%emt 00:00:45]} 16. O-O {[%clk 00:45:03]} {[%emt
00:03:44]} Qa6 {[%clk 00:58:17]} {[%emt 00:03:03]} 17. a3 {[%clk 00:40:58]}
{[%emt 00:04:35]} O-O-O {[%clk 00:54:54]} {[%emt 00:03:51]} 18. Rfd1 {[%clk
00:39:42]} {[%emt 00:01:47]} Kb7 {[%clk 00:51:29]} {[%emt 00:03:56]} 19. Kh1
{[%clk 00:38:46]} {[%emt 00:01:26]} h5 {[%clk 00:48:46]} {[%emt 00:03:13]} 20.
h4 {[%clk 00:39:11]} {[%emt 00:00:05]} Bh6 {[%clk 00:45:48]} {[%emt 00:03:28]}
21. Nd4 {[%clk 00:37:57]} {[%emt 00:01:43]} Qc4 {[%clk 00:43:39]} {[%emt
00:02:40]} 22. Nce2 {[%clk 00:38:00]} {[%emt 00:00:27]} Nxd4 {[%clk 00:42:40]}
{[%emt 00:01:29]} 23. Nxd4 {[%clk 00:38:03]} {[%emt 00:00:27]} Nb5 {[%clk
00:42:10]} {[%emt 00:01:00]} 24. c3 {[%clk 00:33:50]} {[%emt 00:04:42]} Qa4
{[%clk 00:39:29]} {[%emt 00:03:12]} 25. Nxb5 {[%clk 00:27:04]} {[%emt
00:07:16]} Qxb5 {[%clk 00:39:46]} {[%emt 00:00:13]} 26. a4 {[%clk 00:26:04]}
{[%emt 00:01:30]} Qc6 {[%clk 00:38:25]} {[%emt 00:01:51]} 27. Rd4 {[%clk
00:24:42]} {[%emt 00:01:52]} Rc8 {[%clk 00:36:30]} {[%emt 00:02:25]} 28. Be1
{[%clk 00:20:26]} {[%emt 00:04:44]} Rhd8 {[%clk 00:33:47]} {[%emt 00:03:14]} 29.
b4 {[%clk 00:19:20]} {[%emt 00:01:37]} Kb8 {[%clk 00:32:51]} {[%emt 00:01:26]}
30. Qe2 {[%clk 00:18:14]} {[%emt 00:01:36]} Qd7 {[%clk 00:28:44]} {[%emt
00:04:38]} 31. Rad1 {[%clk 00:16:56]} {[%emt 00:01:47]} Qc7 {[%clk 00:22:01]}
{[%emt 00:07:15]} 32. a5 {[%clk 00:17:17]} {[%emt 00:00:08]} Bf8 {[%clk
00:21:24]} {[%emt 00:01:06]} 33. axb6 {[%clk 00:16:41]} {[%emt 00:01:07]} axb6
{[%clk 00:21:19]} {[%emt 00:00:34]} 34. R4d2 {[%clk 00:10:28]} {[%emt
00:06:42]} Bh6 {[%clk 00:20:26]} {[%emt 00:01:23]} 35. Rd4 {[%clk 00:10:33]}
{[%emt 00:00:25]} Bf8 {[%clk 00:20:06]} {[%emt 00:00:51]} 36. Qe3 {[%clk
00:09:48]} {[%emt 00:01:13]} Kb7 {[%clk 00:18:14]} {[%emt 00:02:24]} 37. R1d3
{[%clk 00:09:15]} {[%emt 00:01:02]} Ra8 {[%clk 00:17:22]} {[%emt 00:01:23]} 38.
Kh2 {[%clk 00:09:28]} {[%emt 00:00:17]} b5 {[%clk 00:15:39]} {[%emt 00:02:13]}
39. Rd1 {[%clk 00:09:07]} {[%emt 00:00:49]} Ra2 {[%clk 00:15:15]} {[%emt
00:00:56]} 40. R4d2 {[%clk 00:08:38]} {[%emt 00:00:56]} Rda8 {[%clk 00:14:32]}
{[%emt 00:01:15]} 41. Qe2 {[%clk 00:08:34]} {[%emt 00:00:33]} Qc4 {[%clk
00:14:21]} {[%emt 00:00:42]} 42. Qe3 {[%clk 00:05:45]} {[%emt 00:03:18]} R2a3
{[%clk 00:12:42]} {[%emt 00:02:10]} 43. Rd4 {[%clk 00:05:46]} {[%emt 00:00:29]}
Qc6 {[%clk 00:12:46]} {[%emt 00:00:26]} 44. R4d3 {[%clk 00:06:02]} {[%emt
00:00:14]} Qc4 {[%clk 00:12:21]} {[%emt 00:00:56]} 45. Rd4 {[%clk 00:06:16]}
{[%emt 00:00:16]} Qc6 {[%clk 00:12:49]} {[%emt 00:00:02]} 46. R4d3 {[%clk
00:06:25]} {[%emt 00:00:21]} 1/2-1/2

[Event "Elite Hotels Open 2023"]
[Site "Elite Stadshotellet, Kungsgatan 6, Vaxjo, Sweden"]
[Date "2023.02.11"]
[Round "6.10"]
[White "Sigeman, Johan"]
[Black "Hillarp, Tiger"]
[Result "0-1"]
[TimeControl "15 minutes + 5 seconds per move from move one (Round 1 - 4) / 90 minutes + 30 seconds per move from move one (Round 5 - 8)"]
[BlackTitle "GM"]
[WhiteFideId "1705601"]
[BlackFideId "1700812"]
[WhiteElo "2082"]
[BlackElo "2511"]

1. d4 {[%clk 01:30:56]} {[%emt 00:00:04]} Nf6 {[%clk 01:30:30]} {[%emt
00:00:30]} 2. c4 {[%clk 01:31:18]} {[%emt 00:00:07]} e6 {[%clk 01:29:52]}
{[%emt 00:01:08]} 3. g3 {[%clk 01:30:48]} {[%emt 00:01:01]} c5 {[%clk
01:30:14]} {[%emt 00:00:09]} 4. d5 {[%clk 01:30:33]} {[%emt 00:00:44]} exd5
{[%clk 01:30:37]} {[%emt 00:00:07]} 5. cxd5 {[%clk 01:31:00]} {[%emt 00:00:03]}
d6 {[%clk 01:30:59]} {[%emt 00:00:08]} 6. Nc3 {[%clk 01:31:03]} {[%emt
00:00:27]} g6 {[%clk 01:31:23]} {[%emt 00:00:07]} 7. Bg2 {[%clk 01:31:24]}
{[%emt 00:00:08]} Bg7 {[%clk 01:31:46]} {[%emt 00:00:07]} 8. Nf3 {[%clk
01:31:27]} {[%emt 00:00:28]} O-O {[%clk 01:32:08]} {[%emt 00:00:08]} 9. O-O
{[%clk 01:31:46]} {[%emt 00:00:11]} Na6 {[%clk 01:29:16]} {[%emt 00:03:21]} 10.
Nd2 {[%clk 01:29:22]} {[%emt 00:02:54]} Nc7 {[%clk 01:27:29]} {[%emt 00:02:17]}
11. a4 {[%clk 01:29:06]} {[%emt 00:00:46]} b6 {[%clk 01:26:54]} {[%emt
00:01:05]} 12. Nc4 {[%clk 01:21:48]} {[%emt 00:07:48]} Ba6 {[%clk 01:26:40]}
{[%emt 00:00:45]} 13. Qb3 {[%clk 01:16:55]} {[%emt 00:05:22]} Bxc4 {[%clk
01:25:02]} {[%emt 00:02:08]} 14. Qxc4 {[%clk 01:17:21]} {[%emt 00:00:04]} a6
{[%clk 01:23:22]} {[%emt 00:02:11]} 15. Bg5 {[%clk 01:06:16]} {[%emt 00:11:34]}
h6 {[%clk 01:23:30]} {[%emt 00:00:22]} 16. Bf4 {[%clk 01:06:16]} {[%emt
00:00:30]} Qe7 {[%clk 01:07:37]} {[%emt 00:16:24]} 17. Rfe1 {[%clk 01:00:45]}
{[%emt 00:06:00]} Nd7 {[%clk 01:04:52]} {[%emt 00:03:16]} 18. e4 {[%clk
00:59:53]} {[%emt 00:01:22]} g5 {[%clk 01:02:52]} {[%emt 00:02:29]} 19. Bd2
{[%clk 00:55:18]} {[%emt 00:05:05]} Ne5 {[%clk 00:51:39]} {[%emt 00:11:44]} 20.
Qe2 {[%clk 00:49:46]} {[%emt 00:06:01]} c4 {[%clk 00:51:50]} {[%emt 00:00:20]}
21. b3 {[%clk 00:37:59]} {[%emt 00:12:17]} b5 {[%clk 00:51:01]} {[%emt
00:01:18]} 22. bxc4 {[%clk 00:38:17]} {[%emt 00:00:13]} Nxc4 {[%clk 00:39:51]}
{[%emt 00:11:39]} 23. Ra2 {[%clk 00:34:23]} {[%emt 00:04:24]} Nxd2 {[%clk
00:39:59]} {[%emt 00:00:23]} 24. Qxd2 {[%clk 00:34:28]} {[%emt 00:00:24]} b4
{[%clk 00:36:05]} {[%emt 00:04:24]} 25. Ne2 {[%clk 00:33:16]} {[%emt 00:01:40]}
a5 {[%clk 00:35:09]} {[%emt 00:01:27]} 26. Nd4 {[%clk 00:32:57]} {[%emt
00:00:49]} Na6 {[%clk 00:35:03]} {[%emt 00:00:36]} 27. Nc6 {[%clk 00:24:09]}
{[%emt 00:09:19]} Qc7 {[%clk 00:33:28]} {[%emt 00:02:05]} 28. e5 {[%clk
00:23:56]} {[%emt 00:00:43]} Nc5 {[%clk 00:33:35]} {[%emt 00:00:23]} 29. exd6
{[%clk 00:14:24]} {[%emt 00:10:01]} Qxd6 {[%clk 00:33:58]} {[%emt 00:00:08]} 30.
Ne7+ {[%clk 00:14:43]} {[%emt 00:00:11]} Kh8 {[%clk 00:34:19]} {[%emt
00:00:08]} 31. Nf5 {[%clk 00:15:07]} {[%emt 00:00:07]} Qf6 {[%clk 00:34:03]}
{[%emt 00:00:45]} 32. Nxg7 {[%clk 00:13:18]} {[%emt 00:02:19]} Kxg7 {[%clk
00:34:26]} {[%emt 00:00:07]} 33. d6 {[%clk 00:11:16]} {[%emt 00:02:33]} Rad8
{[%clk 00:34:05]} {[%emt 00:00:50]} 34. Rd1 {[%clk 00:11:36]} {[%emt 00:00:10]}
Rfe8 {[%clk 00:33:11]} {[%emt 00:01:25]} 35. Qd5 {[%clk 00:10:44]} {[%emt
00:01:22]} Qc3 {[%clk 00:18:45]} {[%emt 00:14:54]} 36. Raa1 {[%clk 00:09:25]}
{[%emt 00:01:50]} Re6 {[%clk 00:14:21]} {[%emt 00:04:54]} 37. Rdc1 {[%clk
00:08:53]} {[%emt 00:01:03]} Rexd6 {[%clk 00:14:36]} {[%emt 00:00:14]} 38. Qf5
{[%clk 00:07:01]} {[%emt 00:02:21]} Rf6 {[%clk 00:14:50]} {[%emt 00:00:17]} 39.
Qg4 {[%clk 00:04:56]} {[%emt 00:02:35]} Qb2 {[%clk 00:13:51]} {[%emt 00:01:28]}
40. Rf1 {[%clk 00:03:01]} {[%emt 00:02:26]} Rxf2 {[%clk 00:11:24]} {[%emt
00:02:58]} 41. Rxf2 {[%clk 00:03:28]} {[%emt 00:00:02]} Qxa1+ {[%clk 00:11:44]}
{[%emt 00:00:10]} 42. Rf1 {[%clk 00:03:55]} {[%emt 00:00:04]} Qd4+ {[%clk
00:11:55]} {[%emt 00:00:18]} 0-1